Cogmind - Beta 14 @@@ ROGUE MODE // 2024.10.23 @ 17:00:30 Player: weedlord420 Result: Destroyed by G-50 Soldier with Heavy Laser Performance ------------- Evolutions (1) 500 Regions Visited (6) 1200 Robots Destroyed (87) 435 Value Destroyed (1900) 1900 Prototype IDs (2) 40 Alien Tech Used (0) 0 Bonus (0) 0 TOTAL SCORE: 4075 Bonus ------- None Cogmind --------- Core Integrity 0/400 Matter 300/300 Energy 100/100 System Corruption 0% Temperature Cool (9) Movement Treading (240) Ox1 Location -8/Mines Parts ------- > --- POWER (1) -------- (None) > --- PROPULSION (2) --- Improved Treads > --- UTILITY (4) ------ Improved Heat Sink Large Storage Unit Improved Targeting Computer Hardened Light Armor Plating > --- WEAPON (2) ------- Power Maul > --- INVENTORY (15) --- Light Ion Engine Wheel Wheel Improved Heat Sink Improved Signal Interpreter Improved Signal Interpreter Weapon Cycler Heavy Armor Plating Hardened Light Armor Plating Improved Trap Extractor (0/6) Recalibrator Rocket Launcher Peak State ------------ > --- POWER ------------ Light Angular Momentum Engine > --- PROPULSION ------- (None) > --- UTILITY ---------- Large Storage Unit Improved Targeting Computer Heavy Armor Plating > --- WEAPON ----------- Spread Laser Gatling Laser > --- INVENTORY -------- Improved Signal Interpreter Improved Signal Interpreter Weapon Cycler Hardened Light Armor Plating Hardened Light Armor Plating Improved Trap Extractor Recalibrator Rocket Launcher Power Maul [Rating: 22] Favorites ----------- Power Nuclear Core Engine Light Ion Engine Power Core Nuclear Core Propulsion Wheel Treads Improved Treads Wheel Wheel Utility Large Storage Unit Device Improved Heat Sink Storage Large Storage Unit Processor Improved Targeting Computer Protection Hardened Light Armor Plating Weapon Spread Laser Energy Gun Spread Laser Ballistic Gun Assault Rifle Launcher Rocket Launcher Impact Weapon Power Maul Build | -11 -10 -10 -9 -9 -9 -8 ------- Run | Yrd Mat Min Mat Min Exi Min Slots Evolved 2 | . . . 2 . . . Power . | . . . . . . . Propulsion . | . . . . . . . Utility 2 | . . . 2 . . . Weapon . | . . . . . . . Parts Attached 49 | 7 8 . 12 6 . 16 Power 9 | 2 1 . 3 1 . 2 Engine 5 | 2 1 . 1 . . 1 Core 4 | . . . 2 1 . 1 Reactor . | . . . . . . . Propulsion 13 | 2 2 . 3 3 . 3 Treads 1 | . . . . . . 1 Leg . | . . . . . . . Wheel 12 | 2 2 . 3 3 . 2 Hover . | . . . . . . . Flight . | . . . . . . . Utility 15 | 1 3 . 5 2 . 4 Device 3 | . 1 . . 1 . 1 Storage 2 | 1 1 . . . . . Processor 4 | . . . 3 . . 1 Hackware . | . . . . . . . Protection 6 | . 1 . 2 1 . 2 Artifact . | . . . . . . . Weapon 12 | 2 2 . 1 . . 7 Energy Gun 9 | 1 2 . 1 . . 5 Energy Cannon . | . . . . . . . Ballistic Gun 1 | 1 . . . . . . Ballistic Cannon . | . . . . . . . Launcher 1 | . . . . . . 1 Special Weapon . | . . . . . . . Impact Weapon 1 | . . . . . . 1 Slashing Weapon . | . . . . . . . Piercing Weapon . | . . . . . . . Special Melee Weapon . | . . . . . . . Unidentified Prototypes . | . . . . . . . Parts Lost 15 | . . . 2 2 . 11 Power 2 | . . . 1 . . 1 Propulsion 5 | . . . . 1 . 4 Utility 4 | . . . 1 1 . 2 Weapon 4 | . . . . . . 4 Highest Loss Streak 6 | . . . 1 1 . 6 To Critical Strikes . | . . . . . . . Average Slot Usage (%) 97 | . 99 100 99 99 100 80 Engine 5 | . 14 14 4 . . . Core 5 | . . . 6 11 11 7 Wheel 22 | . 28 28 22 21 22 15 Device 10 | . 2 14 11 11 11 8 Storage 11 | . 14 14 11 11 11 11 Processor 7 | . . . 10 11 11 11 Protection 8 | . 10 . 11 10 11 4 Energy Gun 22 | . 16 28 22 22 22 19 Peak Build Rating 22 | 6 12 14 21 21 20 22 Average Rating 17 | 2 8 13 19 20 20 18 On Entrance 13 | . 6 12 14 21 20 20 Naked Turns . | . . . . . . . Heaviest Build 40 | 13 30 30 40 39 35 35 Greatest Support 26 | 26 26 20 26 26 20 26 Greatest Overweight (x) 8 | . 1 1 1 1 1 8 Average Overweight (x) . | . . 1 1 1 1 1 Largest Inventory Capacity 15 | 8 15 15 15 15 15 15 Average Capacity 14 | 6 8 15 15 15 15 15 Most Carried 15 | 5 9 15 15 15 14 15 Average Carried 13 | 2 5 12 14 14 14 13 Final Capacity 15 | 8 15 15 15 15 15 15 Final Carried 15 | 1 9 15 15 14 14 13 Class Distribution -------------------- 77% | Mutant 22% | Scavenger-Mutant Dominant Class ---------------- Mutant | -10/Materials Mutant | -10/Mines Mutant | -9/Materials Mutant | -9/Mines Mutant | -9/Exiles Mutant | -8/Mines Resources | -11 -10 -10 -9 -9 -9 -8 ----------- Run | Yrd Mat Min Mat Min Exi Min Matter Collected 743 | 217 157 18 120 55 . 176 Remotely . | . . . . . . . Salvage Created 2601 | . 214 333 1050 508 . 496 Parts 167 | . 18 15 73 27 . 34 Haulers Intercepted 4 | . 1 . 3 . . . Recyclers Shooed 6 | . . 2 2 1 . 1 Parts Field Recycled . | . . . . . . . Retrieved Matter . | . . . . . . . Parts Self-Destructed . | . . . . . . . Prevented . | . . . . . . . Kills | -11 -10 -10 -9 -9 -9 -8 ------- Run | Yrd Mat Min Mat Min Exi Min Combat Hostiles Destroyed 49 | . 5 2 19 9 . 14 Guns 44 | . 5 2 18 9 . 10 AOE 5 | . . . 1 . . 4 Classes Destroyed 13 | . 5 2 5 . . 1 Worker 10 | . 1 2 4 1 . 2 Builder 2 | . . . 1 1 . . Tunneler 4 | . . 1 1 . . 2 Hauler 4 | . 1 . 3 . . . Recycler 12 | . . 4 3 3 . 2 Mechanic 1 | . 1 . . . . . Operator 1 | . . . 1 . . . Watcher 4 | . . . 4 . . . Swarmer 13 | . 3 . 3 . . 7 Grunt 26 | . 2 2 9 7 . 6 Brawler 1 | . . . . . . 1 Duelist 1 | . . . 1 . . . Sentry 8 | . . . 6 2 . . Best Kill Streak 14 | . 4 4 5 3 . 14 Combat Bots Only 10 | . 3 2 5 3 . 10 Max Kills in Single Turn 4 | . 1 1 2 1 . 4 Gunslinging . | . . . . . . . Exploded 4 | . . . 1 . . 4 Melee . | . . . . . . . Uniques/NPCs Destroyed . | . . . . . . . Combat | -11 -10 -10 -9 -9 -9 -8 -------- Run | Yrd Mat Min Mat Min Exi Min Hostile Shots Fired 237 | . 34 4 57 30 . 112 Missed 68 | . 7 1 27 7 . 26 Damage Taken 2381 | . 302 48 413 302 . 1316 Core 519 | . 82 26 60 30 . 321 Absorbed by Shields . | . . . . . . . Redirected to Shielding 50 | . 15 . . 4 . 31 Core Remaining (%) 78 | 100 . 56 . . . . Volleys Fired 154 | . 16 14 63 26 . 35 Largest 2 | . 2 2 2 2 . 2 Hottest 145 | . 130 130 130 130 . 145 Shots Fired 304 | . 32 28 126 52 . 66 Gun 303 | . 32 28 126 52 . 65 Cannon . | . . . . . . . Launcher 1 | . . . . . . 1 Special . | . . . . . . . Kinetic 14 | . 14 . . . . . Thermal 289 | . 18 28 126 52 . 65 Explosive 1 | . . . . . . 1 Electromagnetic . | . . . . . . . Robot Hit Streak 18 | . 9 8 18 14 . 10 Robot Miss Streak 7 | . 2 7 6 3 . 4 Penetration Max . | . . . . . . . Secondary Targets 4 | . 1 . 1 . . 2 Max Gunslinging Chain 1 | . 1 . 1 . . 1 Shots Hit Robots 262 | . 21 26 105 46 . 64 Core Hits 359 | . 16 30 155 74 . 84 Critical Kills . | . . . . . . . Critical Parts Destroyed 1 | . . . . . . 1 Critical Strikes 1 | . . . . . . 1 Smash 1 | . . . . . . 1 Melee Attacks 7 | . . . . . . 7 Impact 7 | . . . . . . 7 Slashing . | . . . . . . . Piercing . | . . . . . . . Sneak Attacks . | . . . . . . . Combat Hostiles . | . . . . . . . Follow-up Attacks . | . . . . . . . Damage Inflicted 4298 | . 248 323 1646 693 . 1388 Guns 3774 | . 248 323 1543 693 . 967 Cannons . | . . . . . . . Explosions 301 | . . . 103 . . 198 Melee 223 | . . . . . . 223 Ramming . | . . . . . . . Kinetic 108 | . 108 . . . . . Thermal 3666 | . 140 323 1543 693 . 967 Explosive 198 | . . . . . . 198 Electromagnetic 103 | . . . 103 . . . Impact 223 | . . . . . . 223 Slashing . | . . . . . . . Piercing . | . . . . . . . Highest Corruption . | . . . . . . . Average Corruption . | . . . . . . . Corruption Purged . | . . . . . . . Corruption Blocked . | . . . . . . . Overload Shots . | . . . . . . . Overflow Damage 47 | . . . . . . 47 Projectiles . | . . . . . . . Explosions . | . . . . . . . Melee 47 | . . . . . . 47 Knockbacks . | . . . . . . . Impact . | . . . . . . . Kinetic . | . . . . . . . Secondary . | . . . . . . . Self-Inflicted Damage 56 | . . . 56 . . . Shots 3 | . . . 3 . . . Rammed . | . . . . . . . Targets Rammed . | . . . . . . . Kicked . | . . . . . . . Crushed . | . . . . . . . Highest Temperature 536 | . 69 66 222 240 . 536 Average Temperature 80 | . 37 26 57 76 . 146 Received Heat Transfer 1128 | . 75 18 150 183 . 702 Effects 6 | . . . . . . 6 Matter Decay 1 | . . . . . . 1 Short Circuit 1 | . . . . . . 1 Damage (major) 4 | . . . . . . 4 Siege Activations . | . . . . . . . Robots Corrupted . | . . . . . . . Combat Hostiles . | . . . . . . . Parts Fried . | . . . . . . . Impact Corruptions 1 | . . . . . . 1 Robots Melted . | . . . . . . . Combat Hostiles . | . . . . . . . Parts Melted 4 | . 1 . 2 . . 1 Heat Transferred 5010 | . 300 380 1920 885 . 1525 Parts Sabotaged . | . . . . . . . Parts Stolen . | . . . . . . . Parts Stripped . | . . . . . . . Power Chain Reactions 1 | . . . 1 . . . Alert | -11 -10 -10 -9 -9 -9 -8 ------- Run | Yrd Mat Min Mat Min Exi Min Peak Influence 452 | . 157 131 452 193 . 300 Initial 61 | . . 61 5 3 . . Average 127 | . 90 71 184 58 . 179 Maximum Alert Level 2 | . . . 2 . . 1 Low Security (%) 75 | 100 100 100 54 100 . 48 Level 1 22 | . . . 40 . . 51 Level 2 2 | . . . 5 . . . Level 3 . | . . . . . . . Level 4 . | . . . . . . . Level 5 . | . . . . . . . High Security . | . . . . . . . Max Security . | . . . . . . . Squads Dispatched 5 | . 2 . 2 1 . . Investigation 5 | . 2 . 2 1 . . Extermination . | . . . . . . . Reinforcement . | . . . . . . . Assault . | . . . . . . . Garrison . | . . . . . . . Intercept . | . . . . . . . Searches Triggered . | . . . . . . . Construction Impeded . | . . . . . . . Haulers Reinforced . | . . . . . . . Active Scanning Responses . | . . . . . . . Cargo Convoy Interrupts . | . . . . . . . Stealth | -11 -10 -10 -9 -9 -9 -8 --------- Run | Yrd Mat Min Mat Min Exi Min Distress Signals 3 | . . 1 2 . . . Communications Jammed . | . . . . . . . Distress Signals . | . . . . . . . Times Spotted 72 | . 7 4 33 9 . 19 Peak Tracking Total 7 | . 3 7 4 3 . 5 Tactical Retreats 3 | . . . 1 . . 2 Traps | -11 -10 -10 -9 -9 -9 -8 ------- Run | Yrd Mat Min Mat Min Exi Min Traps Triggered 4 | . 2 1 1 . . . Indirectly . | . . . . . . . Trap Hack Attempts . | . . . . . . . Triggered . | . . . . . . . Disarmed . | . . . . . . . Reprogrammed . | . . . . . . . Reused . | . . . . . . . Traps Extracted . | . . . . . . . Installed . | . . . . . . . Triggered . | . . . . . . . Machines | -11 -10 -10 -9 -9 -9 -8 ---------- Run | Yrd Mat Min Mat Min Exi Min Machines Disabled 5 | . . . 5 . . . Max in Single Turn 3 | . . . 3 . . . Machines Repaired . | . . . . . . . Machines Dismantled . | . . . . . . . Machines Sabotaged . | . . . . . . . Overloaded Fab Kills . | . . . . . . . Hacking | -11 -10 -10 -9 -9 -9 -8 --------- Run | Yrd Mat Min Mat Min Exi Min Machines Accessed 17 | . 3 1 11 1 1 . Terminals 14 | . 3 . 11 . . . Fabricators . | . . . . . . . Repair Stations . | . . . . . . . Recycling Units . | . . . . . . . Scanalyzers . | . . . . . . . Garrison Access . | . . . . . . . Total Hacks 58 | . 6 1 27 1 23 . Successful 41 | . 2 1 14 1 23 . Failed 17 | . 4 . 13 . . . Catastrophic 1 | . . . 1 . . . Database Lockouts . | . . . . . . . Manual 32 | . 5 . 27 . . . Terminals 33 | . 6 . 27 . . . Fabricators . | . . . . . . . Repair Stations . | . . . . . . . Recycling Units . | . . . . . . . Scanalyzers . | . . . . . . . Garrison Access . | . . . . . . . Terminal Hacks 31 | . 1 1 5 1 23 . Record 23 | . . . . . 23 . Robot Analysis 1 | . 1 . . . . . Prototype ID Bank 1 | . . . 1 . . . Open Door 2 | . . 1 . 1 . . Terminal Index 1 | . . . 1 . . . Unreport Threat 3 | . . . 3 . . . Fabricator Hacks . | . . . . . . . Repair Station Hacks . | . . . . . . . Recycling Unit Hacks . | . . . . . . . Scanalyzer . | . . . . . . . Garrison Access Hacks . | . . . . . . . Unauthorized Hacks 10 | . 1 . 9 . . . Terminals 10 | . 1 . 9 . . . Track 2 | . . . 2 . . . Assimilate 2 | . . . 2 . . . Botnet 4 | . . . 4 . . . Operators 2 | . 1 . 1 . . . Fabricators . | . . . . . . . Repair Stations . | . . . . . . . Recycling Units . | . . . . . . . Scanalyzers . | . . . . . . . Garrison Access . | . . . . . . . Data Cores Recovered . | . . . . . . . Used . | . . . . . . . Hacking Detections 11 | . 3 . 8 . . . Full Trace Events 2 | . 1 . 1 . . . Feedback Events . | . . . . . . . Feedback Blocked . | . . . . . . . Robot Schematics Acquired . | . . . . . . . Robots Built . | . . . . . . . Authchips . | . . . . . . . Time . | . . . . . . . Total Robot Build Rating . | . . . . . . . Part Schematics Acquired . | . . . . . . . Parts Built . | . . . . . . . Authchips . | . . . . . . . Time . | . . . . . . . Total Part Build Rating . | . . . . . . . Parts Repaired . | . . . . . . . Time . | . . . . . . . Parts Recycled . | . . . . . . . Recycled Matter . | . . . . . . . Retrieved Matter . | . . . . . . . Retrieved Components . | . . . . . . . Parts Scanalyzed . | . . . . . . . Part Schematics Acquired . | . . . . . . . Parts Damaged . | . . . . . . . Bothacking | -11 -10 -10 -9 -9 -9 -8 ------------ Run | Yrd Mat Min Mat Min Exi Min Used RIF Installer . | . . . . . . . Robots Hacked . | . . . . . . . Non-combat . | . . . . . . . Combat . | . . . . . . . Robot Hacks Applied . | . . . . . . . Relay Couplers Released . | . . . . . . . Fabnet Peak Effective % . | . . . . . . . Robots Rewired . | . . . . . . . Allies Hacked . | . . . . . . . Hacks Repelled . | . . . . . . . Allies | -11 -10 -10 -9 -9 -9 -8 -------- Run | Yrd Mat Min Mat Min Exi Min Total Allies 2 | . . . 1 1 . . Largest Group 1 | . . . 1 1 . . Highest-Rated Group 31 | . . . 10 31 . . Highest-Rated Ally 31 | . . . 10 31 . . Total Orders . | . . . . . . . Ally Attacks . | . . . . . . . Total Damage . | . . . . . . . Kills . | . . . . . . . Allies Corrupted . | . . . . . . . Allies Melted . | . . . . . . . Intel | -11 -10 -10 -9 -9 -9 -8 ------- Run | Yrd Mat Min Mat Min Exi Min Robot Analysis Total 1 | . 1 . . . . . Derelict Logs Recovered 3 | . . 1 . 2 . . Drone Launches . | . . . . . . . Drone Recoveries . | . . . . . . . Exploration | -11 -10 -10 -9 -9 -9 -8 ------------- Run | Yrd Mat Min Mat Min Exi Min Turns Passed 3618 | 34 300 628 1339 741 119 457 Spaces Moved 2780 | 31 224 582 971 590 126 256 Core 21 | 17 . . . . . 4 Treads 1 | . . . . . . 1 Legs . | . . . . . . . Wheels 2758 | 14 224 582 971 590 126 251 Hover . | . . . . . . . Flight . | . . . . . . . Fastest Speed 50 | 50 80 95 95 95 95 90 Average Speed 97 | 68 87 95 96 101 95 106 Slowest Speed 450 | 90 95 95 105 105 95 450 Overloaded Moves . | . . . . . . . Propulsion Burnouts . | . . . . . . . Robots Hopped . | . . . . . . . Cave-ins Triggered . | . . . . . . . Exploration Rate (%) 57 | 4 42 93 73 93 48 51 Regions Visited 6 Branch Regions 4 Pre-discovered Areas 2 | . . 1 . . 1 . Known Exits Taken . | . . . . . . . Unknown Exits Taken 6 | 1 1 1 1 1 1 . Scrap Searched 4 | . . 1 . 2 . 1 Spaces Dug . | . . . . . . . Terrain Destroyed 5 | . . . . . . 5 Melee . | . . . . . . . Projectile . | . . . . . . . AOE 5 | . . . . . . 5 Terrain Rammed . | . . . . . . . Walls Destroyed . | . . . . . . . Machines Disabled . | . . . . . . . Actions | -11 -10 -10 -9 -9 -9 -8 --------- Run | Yrd Mat Min Mat Min Exi Min Total 3376 | 42 295 629 1244 680 125 361 Wait 318 | . 28 29 181 50 . 30 Move 2774 | 30 223 581 970 589 125 256 Hop . | . . . . . . . Pick Up 45 | 5 14 5 9 3 . 9 Fast Attach 5 | 2 . . 1 1 . 1 Attach 24 | 4 1 . 3 1 . 15 Detach 5 | . . . . . . 5 Swap 20 | 1 7 . 8 4 . . Drop 24 | . 6 . 9 6 . 3 Fire 154 | . 16 14 63 26 . 35 Melee 7 | . . . . . . 7 Ram . | . . . . . . . Kick . | . . . . . . . Crush . | . . . . . . . Escape Stasis . | . . . . . . . Rewire . | . . . . . . . Trap . | . . . . . . . Miscellaneous . | . . . . . . . Route ------- -11/Scrapyard -10/Materials (discovered 2 exits: *Mat / *Min) -10/Mines (discovered 2 exits: *Mat x2) -9/Materials (discovered 3 exits: [*Mat x2] / *Min) -9/Mines (discovered 3 exits: [*Mat x2] / *Exi) -9/Exiles -8/Mines History --------- Turn | Location | Event 13 | -11/Scrapyard | Discovered new exit (range 16) 35 | -11/Scrapyard | Entered Materials 240 | -10/Materials | Discovered new exit (range 14) 296 | -10/Materials | Discovered new exit (range 15) 303 | -10/Materials | Build established: Mutant 335 | -10/Materials | Entered Mines 336 | -10/Mines | Learned location of Storage (-7) 360 | -10/Mines | Discovered new exit (range 4) 398 | -10/Mines | Assembled infested the area 403 | -10/Mines | Assisted by a Guerilla fighting off Assembled 653 | -10/Mines | Discovered new exit (range 3) 783 | -10/Mines | Met a Derelict who couldn't figure out how to use a Trap Extractor 963 | -10/Mines | Entered Materials 963 | -9/Materials | Evolved 2 slots: Utility x2 1248 | -9/Materials | Discovered new exit (range 16) 1286 | -9/Materials | Build established: Scavenger-Mutant 1331 | -9/Materials | Discovered new exit (range 5) 1592 | -9/Materials | Discovered new exit (range 16) 1935 | -9/Materials | Build established: Mutant 2302 | -9/Materials | Entered Mines 2306 | -9/Mines | Met a Derelict shopkeep closing up shop 2421 | -9/Mines | Discovered new exit (range 13) 2489 | -9/Mines | Learned 2 Materials zone layouts 2879 | -9/Mines | Learned location of 1 exit from Materials 2914 | -9/Mines | Discovered new exit (range 16) 2942 | -9/Mines | Deemed a non-threat by the Exiles lab entrance 2942 | -9/Mines | Discovered new exit (range 5) 2988 | -9/Mines | Received a Mining Laser from a helpful Derelict 3043 | -9/Mines | Entered Exiles 3065 | -9/Exiles | Met 8R-AWN 3083 | -9/Exiles | Met EX-HEX 3120 | -9/Exiles | Met EX-DEC 3124 | -9/Exiles | Learned location of Zion (-6) 3152 | -9/Exiles | Discovered new exit (range 14) 3162 | -9/Exiles | Entered Mines 3318 | -8/Mines | Core integrity fell below 50% 3359 | -8/Mines | Lost 5 parts (2n1u2w) 3373 | -8/Mines | Destroyed 10 combat bots 3595 | -8/Mines | Core integrity fell below 20% 3619 | -8/Mines | Destroyed by G-50 Soldier with Heavy Laser Last Messages --------------- 03569_ Critical hit (Burn: +37). 03573_ G-47 Trooper destroyed. 03578_ Gatling Laser destroyed. 03579_ K-01 Serf cleans the Seismic Survey Station. 03582_ Spread Laser destroyed. 03583_ K-01 Serf cleans the Seismic Survey Station. 03584_ Lgt. Nuclear Core destroyed. 03596_ Com. Wheel destroyed. 03600_ Critical hit (Burn: +37). 03604_ Acquired 10 matter. 03606_ Acquired Imp. Treads. 03608_ G-47 Trooper suffers critical hit (Smash). 03608_ Destroyed Particle Gun. 03608_ G-47 Trooper system corrupted by crushing effect. 03611_ Acquired 10 matter. 03612_ Wheel destroyed. Map ----- +----------------------------------------------------+ | | | | | | | | | | | | | | | | | | | | | | | | | | | | | | | | | ????????????????????????????????????????? | | ????????????????????????????????????????? | | ????????????????????????????????????????? | | ????????????????????????????????????????? | | ????????????????????????????????????????? | | ????????????????????????????????????????? | | ????????????????????????????????????????? | | ????????????????????????????????????????? | | ???# ##########?????????????????????? | | ??# g @!#?????????????????????? | | ??# ####### g#?????????????????????? | | ????????????####[g#?????????????????????? | | ????????????# %g#############?????????? | | ????????????# ## #?????????? | | ????????????# ## #?????????? | | ????????????# ############## #???####??? | | ????????????# #????????????# #??## ##? | | ???????????? ????????????# #??# # | | ???????????? ????????????# #???# | | ???????????? "???????????## #????# | | ???????????? "??????????## #?????# | | ???????????? "??????????# #?????# | | ???????????? ??????????# ##????## | | ???????????? ??????????## ##????#### | | ????????????##???????????## ######### | | ????????????????????????## | | ????????????????????????# ######## | | ????????????????????????# #??????# | | ????????????????????????# ######## | | ????????????????????????# | | ????????????????????????# " | | ???????????????????????# ##### " | | ?????????????????????? ###???# " | | ????????????????????? ##?????## | +----------------------------------------------------+ Best States ------------- Heat Dissipation 42 Energy Generation 18 Energy Capacity 250 Matter Stores 300 Matter Capacity 300 Sight Range 16 Terrain Scan Density 10 Armor Coverage 600 Propulsion Shielding 33 Weapon Shielding 33 Evasion (%) 50 Targeting Accuracy 11 Recoil Reduction 1 Item Schematics ----------------- None Robot Schematics ------------------ None Fabricated ------------ Nothing Alien Tech Used ----------------- None Achievements -------------- None Challenges ------------ None Game ------ Seed OpticalPiercingBoregun Manual? 0 Play Time 00:26:27 Cumulative 82.8 hours Start 2024.10.23 @ 07:30:31 End 2024.10.23 @ 17:00:30 Sessions 3 Manual Loads 0 Difficulty Rogue Special Mode None Game No. 137 Rogue 136 Adventurer 1 Explorer 0 Win Type - Total 0 Types 0/0/0/0/0/0/0/0/0 Lore% 50 Gallery% 52 Achievement% 44 Wizard Run 0 Options --------- Layout 1 ASCII 0 Keyboard 0 Movement Mouse Keybinds 0 Fullscreen 2 Font 24/Terminus Map View 50x35 Zoom Use 0% Tactical HUD 1 Map Filters NONE Filters NONE Steam 1 RUN: a4ac17e2-996e-4c71-a174-c0450aa09f57